bitfinex-derivatives/quotes_SOLF0:USTF0_20220102
["timestamp","ask_amount","ask_price","bid_price","bid_amount"]
[1641152147815,31.6098,175.24,175.14,3.0]
[1641152148516,12.16077676,175.21,175.13,47.61356676]
[1641152148916,12.16077676,175.21,175.13,44.61356676]
[1641152149318,9.37254526,175.23,175.13,47.61356676]
[1641152149515,9.37254526,175.23,175.13,42.82556676]
[1641152149918,12.1609836,175.21,175.13,42.82556676]
[1641152150116,12.1609836,175.21,175.13,39.82556676]
[1641152150320,12.1609836,175.21,175.14,3.0]
[1641152150519,12.1609836,175.21,175.13,39.82556676]
[1641152151417,12.1609836,175.2,175.13,27.66479]
[1641152152521,17.7319836,175.2,175.13,27.66479]
[1641152152819,12.1609836,175.19,175.13,27.66479]
[1641152153720,5.571,175.2,175.13,27.66479]
[1641152153920,41.66484365,175.23,175.13,27.66479]
[1641152154321,12.16221764,175.19,175.13,27.66479]
[1641152154720,17.73221764,175.19,175.13,27.66479]
[1641152154920,12.16221764,175.18,175.13,27.66479]
[1641152155622,17.73221764,175.19,175.13,27.66479]
[1641152156324,12.16221764,175.18,175.13,27.66479]
[1641152157828,5.57,175.19,175.13,27.66479]
[1641152158826,2.49488535,175.18,175.13,27.66479]
[1641152160026,12.12792246,175.21,175.13,27.66479]
[1641152160838,12.12792246,175.22,175.14,1.54777947]
[1641152161438,12.12792246,175.22,175.13,27.66479]
[1641152161637,12.12792246,175.21,175.1,29.1294]
[1641152162337,18.48492246,175.21,175.11,1.54774838]
[1641152162540,31.6098,175.2,175.11,1.54774838]
[1641152163038,46.23260781,175.2,175.1,27.66479]
[1641152164137,46.23260781,175.2,175.14,4.05455545]
[1641152164341,12.12792246,175.18,175.14,4.05455545]
[1641152165839,12.12792246,175.17,175.13,4.05455545]
[1641152166440,12.16349923,175.18,175.14,4.05455545]
[1641152167340,12.16349923,175.17,175.13,4.05455545]
[1641152167941,12.16349923,175.16,175.12,4.05455545]
[1641152170346,12.16349923,175.17,175.13,4.05455545]
[1641152171043,11.86743061,175.19,175.13,4.05455545]
[1641152171243,12.16318861,175.18,175.14,4.05455545]
[1641152173347,12.16318861,175.18,175.13,4.05455545]
[1641152174744,12.16318861,175.18,175.13,7.05455545]
[1641152174945,12.16318861,175.18,175.16,4.05455545]
[1641152175245,12.16318861,175.21,175.16,4.05455545]
[1641152175645,12.16318861,175.21,175.17,4.05455545]
[1641152175845,2.49488535,175.21,175.17,4.05455545]
[1641152176245,2.49488535,175.21,175.17,10.23855545]
[1641152176443,43.74328861,175.22,175.17,10.23855545]
[1641152176645,43.74328861,175.22,175.17,6.184]
[1641152176846,12.16318861,175.21,175.17,6.184]
[1641152177846,2.50016274,175.21,175.17,10.23855545]
[1641152178048,2.50016274,175.21,175.17,13.23855545]
[1641152178247,2.50016274,175.21,175.17,10.23855545]
[1641152178752,12.16318861,175.22,175.17,10.23855545]
[1641152178948,2.49994826,175.22,175.18,5.60610557]
[1641152179949,4.05108178,175.21,175.2,4.05455545]
[1641152180850,2.49944795,175.24,175.2,4.05455545]
[1641152181550,4.05105269,175.21,175.2,4.05455545]
[1641152182553,2.49945399,175.24,175.2,4.05455545]
[1641152183456,4.05096882,175.21,175.2,4.05455545]
[1641152183656,4.05096882,175.21,175.2,34.71934545]
[1641152183856,14.6626426,175.24,175.2,34.71934545]
[1641152184254,14.6626426,175.24,175.2,31.71934545]
[1641152184454,12.16318861,175.24,175.2,27.66479]
[1641152184655,12.16318861,175.26,175.2,27.66479]
[1641152185357,12.16318861,175.26,175.2,30.66479]
[1641152185556,12.16318861,175.26,175.2,27.66479]
[1641152185757,12.16318861,175.28,175.21,1.55155012]
[1641152186957,12.16318861,175.28,175.21,4.55155012]
[1641152187357,12.16318861,175.28,175.21,1.55155012]
[1641152187559,12.16318861,175.28,175.25,3.0]
[1641152187958,11.72817859,175.3,175.25,3.0]
[1641152187959,12.16318861,175.3,175.25,3.0]
[1641152188759,12.16318861,175.3,175.23,27.66479]
[1641152189358,12.16318861,175.3,175.26,1.55155012]
[1641152189359,4.795,175.3,175.26,1.55155012]
[1641152190261,12.16318861,175.28,175.24,1.55155012]
[1641152191867,12.16318861,175.27,175.23,27.66479]
[1641152192666,2.49973333,175.29,175.24,1.58883669]
[1641152192667,12.15692778,175.28,175.24,1.58883669]
[1641152193266,12.15692778,175.27,175.23,27.66479]
[1641152193470,12.15692778,175.27,175.19,42.77587676]
[1641152193867,12.15692778,175.27,175.22,27.66479]
[1641152194268,2.49973333,175.29,175.22,27.66479]
[1641152195172,12.15727809,175.27,175.23,1.5888298]
[1641152195870,12.15727809,175.27,175.22,27.66479]
[1641152196071,63.69859839,175.31,175.22,27.66479]
[1641152196072,31.4063,175.31,175.22,27.66479]
[1641152196470,31.4063,175.31,175.24,3.0]
[1641152196770,31.4063,175.31,175.22,32.90579]
[1641152197670,31.4063,175.31,175.22,35.90579]
[1641152197871,31.4063,175.31,175.26,27.66479]
[1641152198072,5.70304257,175.32,175.26,27.66479]
[1641152198772,12.15727809,175.35,175.27,3.0]
[1641152198972,12.15727809,175.35,175.28,3.0]
[1641152199172,41.60037809,175.36,175.28,3.0]
[1641152199775,41.60037809,175.36,175.27,40.6038]
[1641152199975,41.60037809,175.36,175.32,27.66479]
[1641152200175,12.15727809,175.36,175.32,32.27879]
[1641152200375,5.70109176,175.38,175.32,32.27879]
[1641152200776,12.15727809,175.4,175.32,32.27879]
[1641152201575,2.43855516,175.39,175.32,32.27879]
[1641152202379,2.43855516,175.4,175.32,32.27879]
[1641152203377,2.43855516,175.4,175.32,4.614]
[1641152203576,3.2409074,175.39,175.28,3.0]
[1641152203777,12.15727809,175.35,175.28,3.0]
[1641152204076,12.15727809,175.35,175.29,27.66479]
[1641152204476,32.29229839,175.39,175.29,27.66479]
[1641152204682,12.15266768,175.33,175.29,29.2537687]
[1641152205281,11.7029624,175.35,175.29,27.66479]
[1641152206382,12.1528364,175.33,175.29,27.66479]
[1641152207286,34.0038,175.4,175.29,27.66479]
[1641152207287,12.1528364,175.32,175.29,27.66479]
[1641152207784,32.29229839,175.36,175.29,27.66479]
[1641152208787,12.15327166,175.32,175.29,27.66479]
[1641152208987,12.15327166,175.32,175.27,35.0598]
[1641152209187,12.15327166,175.32,175.27,3.0]
[1641152209387,12.15327166,175.32,175.28,1.58896036]
[1641152210793,12.15327166,175.3,175.23,57.05469]
[1641152211589,5.554,175.32,175.23,57.05469]
[1641152211994,2.43855516,175.31,175.24,1.5889084]
[1641152212991,12.1548422,175.31,175.24,1.5889084]
[1641152214894,12.1548422,175.3,175.24,1.5889084]
[1641152215594,12.1548422,175.31,175.24,1.5889084]
[1641152216295,12.1548422,175.3,175.24,1.5889084]
[1641152216896,43.99526079,175.34,175.24,1.5889084]
[1641152217395,43.99526079,175.34,175.24,5.9729084]
[1641152218397,12.15454082,175.31,175.24,5.9729084]
[1641152219199,11.7029624,175.34,175.25,1.5889084]
[1641152220499,12.15436463,175.31,175.24,1.5889084]
[1641152221401,14.59291979,175.34,175.24,1.5889084]
[1641152222303,12.15436463,175.33,175.24,1.5889084]
[1641152222701,15.15436463,175.33,175.24,1.5889084]
[1641152223402,12.15436463,175.33,175.24,1.5889084]
[1641152224005,12.15436463,175.31,175.22,1.5889084]
[1641152224807,42.32536463,175.31,175.22,1.5889084]
[1641152225708,12.15436463,175.28,175.22,1.5889084]
[1641152226607,11.67477679,175.3,175.22,1.5889084]
[1641152226808,12.15585676,175.29,175.22,1.5889084]
[1641152227409,17.99785676,175.29,175.22,1.5889084]
[1641152228811,2.43855516,175.28,175.22,1.5889084]
[1641152229513,12.15632484,175.28,175.22,1.5889084]
[1641152230614,11.69949199,175.3,175.22,1.5889084]
[1641152231215,12.15572126,175.29,175.22,1.5889084]
[1641152231915,11.69949199,175.3,175.22,1.5889084]
[1641152232917,12.15587637,175.29,175.22,1.5889084]
[1641152234318,14.61914673,175.3,175.22,20.68789592]
[1641152234520,14.61914673,175.3,175.25,27.66479]
[1641152235122,2.46327036,175.3,175.26,1.5889084]
[1641152236022,30.171,175.31,175.26,1.5889084]
[1641152236721,2.4611579,175.3,175.26,1.5889084]
[1641152238623,30.171,175.31,175.25,27.66479]
[1641152239023,2.46135191,175.3,175.26,1.5889084]
[1641152239924,30.171,175.31,175.26,1.5889084]
[1641152241126,14.6110464,175.3,175.25,27.66479]
[1641152241728,2.4616487,175.3,175.26,1.58818723]
[1641152242927,30.171,175.31,175.26,1.58818723]
[1641152243127,12.1493977,175.32,175.26,6.78918723]
[1641152243827,12.1493977,175.33,175.27,1.58818723]
[1641152244629,12.1493977,175.33,175.29,27.66479]
[1641152246233,14.61046708,175.34,175.29,31.71399091]
[1641152248232,14.61046708,175.34,175.3,5.63743653]
[1641152248435,14.61046708,175.34,175.3,10.95543653]
[1641152249034,12.1493977,175.35,175.31,5.63743653]
[1641152250333,14.61046708,175.36,175.31,5.63743653]
[1641152250935,12.1493977,175.34,175.31,5.974]
[1641152251739,12.1493977,175.35,175.31,10.02320091]
[1641152253238,12.1493977,175.34,175.31,5.974]
[1641152254039,11.72612513,175.36,175.31,10.02320091]
[1641152254239,12.15147752,175.35,175.31,10.02320091]
[1641152254640,12.15147752,175.35,175.31,37.68799091]
[1641152255443,12.15147752,175.35,175.31,10.02320091]
[1641152256145,12.15147752,175.35,175.31,5.974]
[1641152256343,12.15147752,175.35,175.3,4.04920091]
[1641152256744,12.15147752,175.35,175.31,4.04920091]
[1641152257444,12.15147752,175.34,175.3,5.63820464]
[1641152258542,11.72612513,175.36,175.29,27.66479]
[1641152258543,2.46106938,175.36,175.29,27.66479]
[1641152260246,4.0329492,175.34,175.29,27.66479]
[1641152260846,4.03285956,175.35,175.29,27.66479]
[1641152262446,4.03293186,175.34,175.29,27.66479]
[1641152262947,2.46106938,175.36,175.29,27.66479]
[1641152263647,4.0329786,175.34,175.29,27.66479]
[1641152264949,2.46106938,175.36,175.29,27.66479]
[1641152265148,4.0328698,175.35,175.29,27.66479]
[1641152265951,12.0989848,175.34,175.3,5.63820835]
[1641152266549,11.72572241,175.36,175.31,4.04920091]
[1641152266749,12.15130613,175.35,175.31,4.04920091]
[1641152268151,12.15200145,175.34,175.3,5.63820835]
[1641152269853,2.46106938,175.35,175.3,5.63820835]
[1641152270454,3.0,175.34,175.3,5.63820835]
[1641152270652,12.1524525,175.33,175.29,4.04920091]
[1641152270853,42.8029525,175.33,175.29,4.04920091]
[1641152271454,30.6505,175.33,175.29,4.04920091]
[1641152271652,12.15354019,175.31,175.27,4.04920091]
[1641152271853,18.12454019,175.31,175.27,4.04920091]
[1641152272655,2.46106938,175.3,175.27,4.04920091]
[1641152273458,18.12521818,175.31,175.27,4.04920091]
[1641152274457,2.46250013,175.3,175.27,4.04920091]
[1641152275260,18.12533833,175.31,175.27,4.04920091]
[1641152275859,2.46254039,175.3,175.27,4.04920091]
[1641152276561,12.15433833,175.31,175.27,4.04920091]
[1641152276759,14.61673444,175.32,175.28,4.04920091]
[1641152277160,14.61673444,175.32,175.29,27.66479]
[1641152277765,2.46239611,175.32,175.29,31.71399091]
[1641152278259,42.80483833,175.33,175.29,31.71399091]
[1641152278459,12.15433833,175.32,175.29,27.66479]
[1641152279162,12.15326031,175.33,175.29,31.71399091]
[1641152281063,4.04303754,175.3,175.29,27.66479]
[1641152281864,14.61538814,175.34,175.29,27.66479]
[1641152282869,4.04303193,175.3,175.29,27.66479]
[1641152283468,4.04283834,175.31,175.29,27.66479]
[1641152284170,2.46212783,175.34,175.29,27.66479]
[1641152285271,4.04280595,175.3,175.29,27.66479]
[1641152285871,14.61538814,175.34,175.29,30.66479]
[1641152286071,14.61538814,175.34,175.31,3.0]
[1641152286670,4.042277,175.33,175.31,3.0]
[1641152287370,4.042277,175.33,175.32,27.66479]
[1641152287772,14.61538814,175.37,175.32,27.66479]
[1641152288073,14.61538814,175.37,175.32,32.46579]
[1641152288872,12.15326031,175.39,175.35,4.04920091]
[1641152289673,11.72304455,175.41,175.35,4.04920091]
[1641152290473,12.14881192,175.39,175.35,4.04920091]
[1641152292176,11.72304455,175.41,175.35,4.04920091]
[1641152293179,12.14855668,175.4,175.35,4.04920091]
[1641152293779,12.14855668,175.39,175.35,4.04920091]
[1641152294479,11.72304455,175.41,175.35,4.04920091]
[1641152295079,12.14865027,175.39,175.35,4.04920091]
[1641152295782,11.72304455,175.41,175.34,5.63831213]
[1641152295980,12.14879365,175.38,175.34,5.63831213]
[1641152296581,11.72304455,175.41,175.37,27.66479]
[1641152296780,11.72304455,175.41,175.37,32.70479]
[1641152297585,11.72304455,175.41,175.37,5.04]
[1641152297785,12.14711358,175.41,175.37,4.04920091]
[1641152298488,12.14711358,175.39,175.35,5.63833726]
[1641152299289,30.9042,175.42,175.35,5.63833726]
[1641152299488,30.9042,175.42,175.35,11.31133726]
[1641152299994,12.14803625,175.39,175.35,9.72220091]
[1641152300694,11.72304455,175.41,175.35,9.72220091]
[1641152301395,12.14803364,175.39,175.35,9.72220091]
[1641152302094,11.72304455,175.41,175.35,9.72220091]
[1641152303095,12.14784359,175.4,175.36,5.63834041]
[1641152303900,12.14784359,175.41,175.37,4.04920091]
[1641152308902,11.72304455,175.43,175.37,4.04920091]
[1641152309802,12.14690532,175.41,175.37,4.04920091]
[1641152310505,11.72304455,175.43,175.37,4.04920091]
[1641152311210,12.14612345,175.42,175.38,4.04920091]
[1641152311707,11.72304455,175.43,175.38,4.04920091]
[1641152312699,12.14613165,175.42,175.38,4.04920091]
[1641152313007,11.72304455,175.43,175.39,4.04920091]
[1641152313609,12.14615967,175.42,175.38,4.04920091]
[1641152314410,11.72304455,175.43,175.38,4.04920091]
[1641152315413,12.14621079,175.42,175.38,4.04920091]
[1641152316011,11.72304455,175.43,175.38,4.04920091]
[1641152316814,12.14651386,175.42,175.38,4.04920091]
[1641152318414,12.14651386,175.41,175.37,4.04920091]
[1641152319015,14.72304455,175.43,175.37,4.04920091]
[1641152319318,11.72304455,175.43,175.37,4.04920091]
[1641152319816,2.46212783,175.43,175.39,4.04920091]
[1641152320017,14.60763393,175.43,175.39,4.04920091]
[1641152320716,32.29229839,175.47,175.39,4.04920091]
[1641152320917,12.14495584,175.44,175.4,4.04920091]
[1641152321116,12.14495584,175.44,175.4,8.34220091]
[1641152321717,12.14495584,175.45,175.41,4.04920091]
[1641152322520,12.14367669,175.46,175.42,4.04920091]
[1641152323120,11.71368995,175.47,175.42,4.04920091]
[1641152323920,12.14379422,175.46,175.42,4.04920091]
[1641152324522,11.71368995,175.47,175.42,4.04920091]
[1641152325423,12.1442674,175.45,175.41,4.04920091]
[1641152326025,11.71368995,175.47,175.41,4.04920091]
[1641152326224,12.14430172,175.46,175.42,4.04920091]
[1641152326925,12.14430172,175.45,175.41,4.04920091]
[1641152327728,11.71368995,175.47,175.41,4.04920091]
[1641152328326,12.1446717,175.45,175.41,4.04920091]
[1641152328829,11.71368995,175.47,175.41,4.04920091]
[1641152329029,12.14410629,175.46,175.42,4.04920091]
[1641152330232,69.59855382,175.5,175.42,5.63834041]
[1641152330430,11.71368995,175.49,175.42,5.63834041]
[1641152330831,12.1441061,175.46,175.42,4.04920091]
[1641152333639,12.1441061,175.47,175.43,4.04920091]
[1641152334436,12.1441061,175.46,175.42,4.04920091]
[1641152336138,12.1441061,175.45,175.42,4.04920091]
[1641152336840,2.45865543,175.47,175.41,5.63834041]
[1641152337338,5.45865543,175.47,175.41,5.63834041]
[1641152337538,2.45865543,175.47,175.41,5.63834041]
[1641152337738,32.29229839,175.48,175.41,5.63834041]
[1641152337739,12.14406458,175.46,175.42,4.04920091]
[1641152339842,5.45865543,175.48,175.42,4.04920091]
[1641152340045,2.45865543,175.47,175.42,4.04920091]
[1641152341648,12.14373729,175.45,175.41,4.04920091]
[1641152342451,12.1436173,175.46,175.42,4.04920091]
[1641152343152,12.1436173,175.45,175.41,31.71399091]
[1641152344255,2.45865543,175.48,175.41,31.71399091]
[1641152344451,4.0468762,175.43,175.42,5.63834041]
[1641152345251,12.1406286,175.47,175.42,5.63834041]
[1641152346156,4.04685366,175.43,175.42,5.63834041]
[1641152346954,2.45865543,175.45,175.42,5.63834041]
[1641152347554,4.04687156,175.43,175.42,5.63834041]
[1641152348154,12.14061469,175.46,175.42,5.63834041]
[1641152348954,11.71291862,175.49,175.42,33.30313041]
[1641152349557,12.14059155,175.46,175.42,31.71399091]
[1641152350160,18.48591862,175.49,175.42,31.71399091]
[1641152350360,4.04666592,175.44,175.43,5.63820894]
[1641152351459,2.4578841,175.48,175.43,4.04920091]
[1641152351763,12.14081091,175.46,175.42,31.71399091]
[1641152352761,3.0,175.43,175.42,4.04920091]
[1641152352961,8.209,175.43,175.38,12.16077676]
[1641152353162,3.0,175.41,175.38,12.16077676]
[1641152353662,3.0,175.41,175.38,0.72167676]
[1641152353861,5.4578841,175.4,175.33,27.66479]
[1641152354663,2.4578841,175.39,175.33,27.66479]
[1641152354863,7.7528841,175.39,175.33,21.18589018]
[1641152356466,2.4578841,175.38,175.34,1.50814611]
[1641152357366,11.3198841,175.39,175.34,1.50814611]
[1641152357967,8.3198841,175.39,175.34,1.50814611]
[1641152358268,2.4578841,175.38,175.32,27.66479]
[1641152359170,2.4578841,175.38,175.33,1.50814611]
[1641152362373,2.4578841,175.38,175.3,8.2294034]
[1641152364674,2.4578841,175.38,175.32,27.66479]
[1641152365373,2.4578841,175.38,175.31,32.0258]
[1641152365975,2.4578841,175.38,175.33,1.50814611]
[1641152366676,5.862,175.39,175.31,32.0258]
[1641152366978,30.0166,175.41,175.32,27.66479]
[1641152369379,30.0166,175.41,175.33,1.49820014]
[1641152371583,30.0166,175.41,175.34,27.66479]
[1641152373583,2.54073091,175.4,175.35,1.50817306]
[1641152374387,2.54073091,175.41,175.33,1.50817306]
[1641152375488,2.54073091,175.42,175.33,1.50817306]
[1641152376289,5.54073091,175.42,175.33,1.50817306]
[1641152376491,3.0,175.41,175.33,1.50817306]
[1641152376691,8.544,175.41,175.33,1.50817306]
[1641152377089,5.544,175.41,175.33,1.50817306]
[1641152377292,8.544,175.41,175.33,1.50817306]
[1641152377691,30.20552091,175.4,175.32,8.22903113]
[1641152377891,2.54073091,175.4,175.32,8.22903113]
[1641152378491,2.54073091,175.4,175.32,1.50817306]
[1641152379193,3.0,175.38,175.32,1.50817306]
[1641152379591,3.0,175.39,175.32,1.50817306]
[1641152380091,3.0,175.39,175.32,8.22925195]
[1641152380791,3.0,175.39,175.32,1.50817306]
[1641152381091,2.54073091,175.38,175.32,1.50817306]
[1641152383592,5.54073091,175.38,175.32,1.50817306]
[1641152383791,12.14821338,175.37,175.32,1.50817306]
[1641152384191,15.14821338,175.37,175.32,1.50817306]
[1641152384392,17.68894429,175.37,175.29,1.50817306]
[1641152384693,12.14821338,175.36,175.29,1.50817306]
[1641152385295,14.68894429,175.36,175.29,1.50817306]
[1641152385794,12.14821338,175.37,175.29,20.37777362]
[1641152387995,39.81300338,175.37,175.29,20.37777362]
[1641152388496,42.81300338,175.37,175.29,20.37777362]
[1641152389196,2.54073091,175.36,175.29,20.37777362]
[1641152389393,7.44173091,175.36,175.29,20.37777362]
[1641152389997,7.44173091,175.36,175.29,1.50817306]
[1641152390203,3.0,175.35,175.29,1.50817306]
[1641152390999,2.54073091,175.34,175.28,1.50817306]
[1641152392502,2.54073091,175.35,175.28,1.50817306]
[1641152393102,3.0,175.34,175.28,1.50817306]
[1641152393303,3.0,175.33,175.28,1.50817306]
[1641152394404,2.54073091,175.32,175.27,1.50817306]
[1641152394603,9.11173091,175.32,175.27,1.50817306]
[1641152395304,9.571,175.32,175.26,1.50817306]
[1641152395906,34.23579,175.32,175.26,1.50817306]
[1641152396106,2.53776528,175.31,175.24,1.50817306]
[1641152396906,14.68597866,175.31,175.24,20.37820261]
[1641152397813,2.53776528,175.31,175.24,20.37820261]
[1641152398415,14.68597866,175.31,175.24,1.50817306]
[1641152400317,2.53776528,175.31,175.24,20.37819648]
[1641152401718,2.53776528,175.31,175.25,12.14821338]
[1641152402319,2.53776528,175.31,175.24,20.37819648]
[1641152402921,2.53776528,175.31,175.25,12.14821338]
[1641152404520,2.53776528,175.31,175.24,20.37819648]
[1641152404722,3.0,175.3,175.24,20.37819648]
[1641152404922,3.0,175.29,175.24,20.37819648]
[1641152405122,5.53776528,175.31,175.24,20.37819648]
[1641152405323,2.53776528,175.31,175.24,20.37819648]
[1641152405523,2.53776528,175.29,175.24,12.14821338]
[1641152406025,2.53776528,175.31,175.24,12.14821338]
[1641152407426,5.53776528,175.31,175.24,12.14821338]
[1641152408225,2.53776528,175.3,175.24,12.14821338]
[1641152410430,2.53776528,175.31,175.24,12.14821338]
[1641152411133,14.68597866,175.31,175.23,20.37819648]
[1641152412131,32.54379,175.32,175.23,1.50817306]
[1641152412330,35.54379,175.32,175.23,1.50817306]
[1641152413438,4.03014849,175.31,175.24,4.03014849]
[1641152413638,7.03014849,175.31,175.24,4.03014849]
[1641152413835,3.0,175.29,175.24,4.03014849]
[1641152414036,3.0,175.28,175.24,4.03014849]
[1641152414235,3.0,175.27,175.24,4.03014849]
[1641152414438,4.653,175.28,175.22,4.03014849]
[1641152414935,3.0,175.27,175.22,4.03014849]
[1641152415138,4.653,175.28,175.22,4.03014849]
[1641152415335,4.653,175.28,175.21,36.61636833]
[1641152415839,4.653,175.28,175.22,4.03014849]
[1641152416037,4.653,175.28,175.22,5.53036833]
[1641152418744,4.04443889,175.27,175.24,4.03014849]
[1641152419547,2.53904745,175.29,175.24,4.03014849]
[1641152420144,33.0855,175.3,175.24,4.03014849]
[1641152420346,4.04439912,175.27,175.24,4.03014849]
[1641152420745,6.472,175.27,175.24,4.03014849]
[1641152421644,10.51639274,175.27,175.24,4.03014849]
[1641152422044,6.472,175.27,175.24,4.03014849]
[1641152422947,10.5164237,175.27,175.24,4.03014849]
[1641152423554,6.472,175.27,175.25,4.03014849]
[1641152425549,4.0444088,175.28,175.25,4.03014849]
[1641152425949,33.0855,175.3,175.25,4.03014849]
[1641152426150,4.04448666,175.27,175.25,4.03014849]
[1641152426651,4.04430999,175.28,175.26,4.03014849]
[1641152427350,33.0855,175.3,175.26,4.03014849]
[1641152428154,4.04431923,175.28,175.26,4.03014849]
[1641152429053,2.53926702,175.28,175.24,4.03014849]
[1641152429656,4.04453214,175.27,175.24,4.03014849]
[1641152430557,2.53910472,175.28,175.25,4.03014849]
[1641152431261,4.04447213,175.26,175.24,4.03014849]
[1641152432061,2.53908494,175.28,175.24,4.03014849]
[1641152432563,6.396,175.29,175.24,4.03014849]
[1641152432761,4.04445342,175.27,175.24,4.03014849]
[1641152433264,2.53906556,175.28,175.24,4.03014849]
[1641152434066,4.04444601,175.27,175.24,4.03014849]
[1641152434465,6.396,175.29,175.24,4.03014849]
[1641152434667,2.53905851,175.28,175.24,4.03014849]
[1641152435267,4.04444309,175.27,175.24,4.03014849]
[1641152435966,4.04571149,175.26,175.24,4.03014849]
[1641152436667,12.14821338,175.3,175.24,4.03014849]
[1641152436868,12.14821338,175.31,175.24,6.257]
[1641152437468,12.14821338,175.31,175.25,3.0]
[1641152437671,32.29229839,175.35,175.25,3.0]
[1641152437870,32.29229839,175.35,175.26,30.8512]
[1641152438270,32.29229839,175.35,175.31,27.66479]
[1641152438471,15.06998011,175.38,175.31,27.66479]
[1641152439276,5.70125428,175.38,175.31,27.66479]
[1641152439473,2.39298173,175.37,175.32,1.50021984]
[1641152440575,5.70125428,175.38,175.32,1.50021984]
[1641152441475,2.39297347,175.37,175.32,1.50021984]
[1641152442078,5.70125428,175.38,175.32,1.50021984]
[1641152442279,14.79117879,175.38,175.32,1.50021984]
[1641152442979,2.39622779,175.37,175.32,1.50021984]
[1641152443780,5.70125428,175.38,175.32,1.50021984]
[1641152444579,2.39601999,175.37,175.32,1.50021984]
[1641152444779,8.62001999,175.37,175.32,1.50021984]
[1641152445683,2.39605276,175.36,175.32,1.50021984]
[1641152446282,2.39605276,175.36,175.35,27.66479]
[1641152447081,32.29229839,175.42,175.35,27.66479]
[1641152447381,2.39577549,175.38,175.35,27.66479]
[1641152448382,5.779,175.4,175.35,27.66479]
[1641152449585,9.0294058,175.45,175.35,27.66479]
[1641152449784,9.0294058,175.45,175.36,29.7822]
[1641152450688,41.32170419,175.45,175.36,29.7822]
[1641152451085,3.0,175.44,175.36,29.7822]
[1641152451285,3.0,175.42,175.36,29.7822]
[1641152451488,3.0,175.42,175.35,27.66479]
[1641152451785,3.0,175.4,175.31,27.66479]
[1641152451986,7.552,175.4,175.3,31.0944]
[1641152452187,27.66479,175.37,175.3,31.0944]
[1641152452788,31.9073,175.39,175.3,31.0944]
[1641152453687,4.552,175.4,175.3,31.0944]
[1641152453887,4.552,175.4,175.31,7.02689695]
[1641152455190,3.0,175.39,175.31,7.02689695]
[1641152455689,8.70076675,175.39,175.31,7.02689695]
[1641152456089,8.70076675,175.39,175.3,27.66479]
[1641152456289,3.0,175.38,175.3,27.66479]
[1641152456990,9.16994426,175.38,175.3,27.66479]
[1641152458193,9.16994426,175.38,175.29,29.9226]
[1641152460395,3.0,175.35,175.29,29.9226]
[1641152460596,9.824,175.35,175.27,27.66479]
[1641152461196,6.824,175.35,175.27,27.66479]
[1641152462795,6.824,175.35,175.29,3.0]
[1641152463396,6.824,175.35,175.27,30.66479]
[1641152463600,6.824,175.35,175.28,3.0]
[1641152464498,6.824,175.35,175.28,6.99190306]
[1641152465496,32.6193,175.42,175.28,6.99190306]
[1641152465698,32.6193,175.42,175.29,30.407]
[1641152466398,3.0,175.39,175.3,7.02693631]
[1641152466599,35.21679,175.4,175.3,7.02693631]
[1641152467098,3.0,175.39,175.27,59.95708839]
[1641152467400,9.17254773,175.39,175.27,27.66479]
[1641152468099,12.14954361,175.37,175.29,12.14954361]
[1641152468298,12.14954361,175.37,175.29,15.14954361]
[1641152468499,12.14954361,175.37,175.29,12.14954361]
[1641152468697,12.14954361,175.37,175.28,7.02710276]
[1641152468698,12.14954361,175.38,175.3,12.14954361]
[1641152469498,9.17254773,175.39,175.29,12.14954361]
[1641152469499,12.14954361,175.37,175.29,12.14954361]
[1641152472298,12.14954361,175.39,175.31,12.14954361]
[1641152473700,12.14954361,175.39,175.31,19.17664637]
[1641152475906,12.14954361,175.38,175.3,39.81433361]
[1641152476604,17.72154361,175.39,175.31,19.17651361]
[1641152477606,5.572,175.39,175.32,15.14954361]
[1641152479506,5.572,175.39,175.32,22.17651361]
[1641152481308,12.14954361,175.4,175.32,22.17651361]
[1641152482309,12.14954361,175.4,175.32,15.14954361]
[1641152482510,12.14954361,175.38,175.32,3.0]
[1641152482710,17.04654361,175.38,175.32,3.0]
[1641152485111,12.14954361,175.37,175.32,3.0]
[1641152485712,17.04654361,175.38,175.32,3.0]
[1641152487713,2.42689914,175.37,175.33,1.62272403]
[1641152490318,2.42689914,175.37,175.32,1.62272403]
[1641152491020,14.57644275,175.4,175.32,1.62272403]
[1641152493325,12.14954361,175.38,175.32,1.62272403]
[1641152496326,14.57644275,175.38,175.32,1.62272403]
[1641152496925,12.14954361,175.38,175.34,4.04973626]
[1641152498826,12.14954361,175.37,175.33,4.04973626]
[1641152500129,12.14954361,175.38,175.33,4.04973626]
[1641152501432,12.14954361,175.37,175.33,4.04973626]